Cogmind - Beta 15 @@@ ROGUE MODE // 2025.08.29 @ 11:41:13 Player: erkyp3rky Result: Destroyed by G-34 Mercenary with Small Laser Performance ------------- Evolutions (1) 500 Regions Visited (2) 400 Robots Destroyed (21) 105 Value Destroyed (514) 514 Prototype IDs (0) 0 Alien Tech Used (0) 0 Bonus (0) 0 TOTAL SCORE: 1519 Bonus ------- None Cogmind --------- Core Integrity 0/400 Matter 300/300 Energy 100/100 System Corruption 1% Temperature Cool (6) Movement Core (200) Ox3 Location -9/Materials Parts ------- > --- POWER (1) -------- (None) > --- PROPULSION (2) --- (None) > --- UTILITY (4) ------ Medium Storage Unit Targeting Computer > --- WEAPON (2) ------- (None) > --- INVENTORY (10) --- Improved Terrain Scanner Peak State ------------ > --- POWER ------------ Light Nuclear Core > --- PROPULSION ------- Light Treads Light Treads > --- UTILITY ---------- Medium Storage Unit Seismic Detector Targeting Computer Light Armor Plating > --- WEAPON ----------- Particle Gun Particle Gun > --- INVENTORY -------- Improved Terrain Scanner [Rating: 13] Favorites ----------- Power Light Nuclear Core Engine Ion Engine Power Core Light Nuclear Core Propulsion Light Treads Treads Light Treads Utility Seismic Detector Device Seismic Detector Storage Small Storage Unit Processor Targeting Computer Protection Light Armor Plating Weapon Medium Laser Energy Gun Medium Laser Ballistic Gun Light Assault Rifle Build | -11 -10 -9 ------- Run | Yrd Mat Mat Slots Evolved 2 | . . 2 Power . | . . . Propulsion . | . . . Utility 2 | . . 2 Weapon . | . . . Parts Attached 18 | 7 5 6 Power 2 | 1 1 . Engine 1 | 1 . . Core 1 | . 1 . Reactor . | . . . Propulsion 4 | 2 1 1 Treads 4 | 2 1 1 Leg . | . . . Wheel . | . . . Hover . | . . . Flight . | . . . Utility 5 | 2 1 2 Device 1 | 1 . . Storage 2 | 1 1 . Processor 1 | . . 1 Hackware . | . . . Protection 1 | . . 1 Artifact . | . . . Weapon 7 | 2 2 3 Energy Gun 6 | 1 2 3 Energy Cannon . | . . . Ballistic Gun 1 | 1 . . Ballistic Cannon . | . . . Launcher . | . . . Special Weapon . | . . . Impact Weapon . | . . . Slashing Weapon . | . . . Piercing Weapon . | . . . Special Melee Weapon . | . . . Unidentified Prototypes . | . . . Parts Lost 6 | . . 6 Power 1 | . . 1 Propulsion 1 | . . 1 Utility 2 | . . 2 Weapon 2 | . . 2 Highest Loss Streak 6 | . . 6 To Critical Strikes . | . . . Average Backups . | . 1 1 Power . | . . . Propulsion . | . . . Utility . | . 1 1 Weapon . | . . . Tool/Special . | . . . Unused Backups 1 | . . 1 Power . | . . . Propulsion . | . . . Utility 1 | . . 1 Weapon . | . . . Tool/Special . | . . . Average Slot Usage (%) 88 | . 100 70 Engine 2 | . 3 . Core 9 | . 10 8 Treads 23 | . 28 16 Device 12 | . 14 9 Storage 12 | . 14 11 Processor 1 | . . 3 Protection 1 | . . 3 Energy Gun 16 | . 15 16 Ballistic Gun 7 | . 12 . Peak Build Rating 13 | 7 9 13 Average Rating 8 | 5 8 8 On Entrance 5 | . 7 9 Naked Turns . | . . . Heaviest Build 25 | 14 20 25 Greatest Support 40 | 40 40 40 Greatest Overweight (x) 4 | 4 . 3 Average Overweight (x) . | . . . Largest Inventory Capacity 10 | 8 10 10 Average Capacity 8 | 7 8 10 Most Carried 2 | 1 2 1 Average Carried . | . 1 1 Final Capacity 10 | 8 10 10 Final Carried 1 | 1 1 1 Class Distribution -------------------- 68% | Mutant 31% | Scavenger-Mutant Dominant Class ---------------- Mutant | -10/Materials Scavenger-Mutant | -9/Materials Resources | -11 -10 -9 ----------- Run | Yrd Mat Mat Matter Collected 412 | 220 132 60 Remotely . | . . . Salvage Created 824 | 31 471 322 Parts 40 | 5 23 12 Haulers Intercepted 1 | . 1 . Recyclers Shooed 1 | . . 1 Parts Field Recycled . | . . . Retrieved Matter . | . . . Parts Self-Destructed . | . . . Prevented . | . . . Kills | -11 -10 -9 ------- Run | Yrd Mat Mat Combat Hostiles Destroyed 14 | . 8 6 Guns 14 | . 8 6 Classes Destroyed 9 | 1 4 4 Builder 1 | . . 1 Tunneler 2 | 2 . . Hauler 1 | . 1 . Recycler 2 | . 1 1 Watcher 1 | . 1 . Swarmer 3 | . . 3 Grunt 8 | . 8 . Duelist 1 | . . 1 Sentry 2 | . . 2 Best Kill Streak 5 | 2 5 3 Combat Bots Only 4 | . 4 3 Max Kills in Single Turn 1 | 1 1 1 Gunslinging . | . . . Exploded . | . . . Melee . | . . . Uniques/NPCs Destroyed . | . . . Combat | -11 -10 -9 -------- Run | Yrd Mat Mat Hostile Shots Fired 127 | . 34 93 Missed 29 | . 13 16 Hits 98 | . 21 77 Melee 8 | . . 8 Projectile 90 | . 21 69 Critical Strikes 3 | . . 3 Damage Taken 1272 | . 249 1023 Core 433 | . 33 400 Absorbed by Shields . | . . . Core Remaining (%) 93 | 100 86 . Volleys Fired 59 | 5 27 27 Largest 2 | 2 2 2 Hottest 130 | 70 70 130 Shots Fired 113 | 10 54 49 Gun 113 | 10 54 49 Cannon . | . . . Launcher . | . . . Special . | . . . Kinetic 32 | 5 27 . Thermal 81 | 5 27 49 Explosive . | . . . Electromagnetic . | . . . Robot Hit Streak 11 | 3 11 7 Robot Miss Streak 3 | 3 2 3 Penetration Max . | . . . Secondary Targets 1 | . 1 . Max Gunslinging Chain 1 | . 1 . Shots Hit Robots 73 | 6 37 30 Core Hits 42 | 3 23 16 Critical Kills 2 | 1 1 . Critical Parts Destroyed . | . . . Critical Strikes 8 | 3 2 3 Burn 6 | 2 1 3 Destroy 2 | 1 1 . Melee Attacks . | . . . Impact . | . . . Slashing . | . . . Piercing . | . . . Sneak Attacks . | . . . Combat Hostiles . | . . . Follow-up Attacks . | . . . Damage Inflicted 966 | 72 395 499 Guns 931 | 72 395 464 Cannons . | . . . Explosions . | . . . Melee . | . . . Ramming 35 | . . 35 Kinetic 182 | 22 160 . Thermal 749 | 50 235 464 Explosive . | . . . Electromagnetic . | . . . Impact . | . . . Slashing . | . . . Piercing . | . . . Highest Corruption 1 | . . 1 Average Corruption 1 | . . 1 Corruption Purged . | . . . Corruption Blocked . | . . . Overload Shots . | . . . Overflow Damage . | . . . Projectiles . | . . . Explosions . | . . . Melee . | . . . Knockbacks . | . . . Impact . | . . . Kinetic . | . . . Secondary . | . . . Self-Inflicted Damage 9 | . . 9 Shots . | . . . Rammed 40 | . . 40 Targets Rammed 40 | . . 40 Kicked . | . . . Crushed . | . . . Highest Temperature 544 | 50 292 544 Average Temperature 135 | 23 92 182 Received Heat Transfer 453 | . 141 312 Effects 3 | . . 3 Shutdowns 1 | . . 1 Energy Bleed 1 | . . 1 Short Circuit 1 | . . 1 Siege Activations . | . . . Martial Activations . | . . . Shielding Activations . | . . . Robots Disrupted . | . . . Combat Hostiles . | . . . Robots Corrupted . | . . . Combat Hostiles . | . . . Parts Fried . | . . . Impact Corruptions . | . . . Robots Melted . | . . . Combat Hostiles . | . . . Parts Melted 4 | . 1 3 Heat Transferred 2442 | 296 740 1406 Parts Sabotaged . | . . . Parts Stolen . | . . . Parts Stripped . | . . . Power Chain Reactions . | . . . Alert | -11 -10 -9 ------- Run | Yrd Mat Mat Maximum Alert Level . | . . . Low Security (%) 100 | 100 100 100 Level 1 . | . . . Level 2 . | . . . Level 3 . | . . . Level 4 . | . . . Level 5 . | . . . High Security . | . . . Max Security . | . . . Peak Influence 111 | 5 111 69 Initial 18 | . . 18 Average 33 | 1 41 28 Influence Increases 427 | 10 246 171 Destroy 0b10 Robot/C 280 | . 160 120 Destroy 0b10 Robot/NC 35 | 10 15 10 Destroy Leader 84 | . 44 40 Successful Hack 12 | . 12 . Destroy Structure 1 | . . 1 Partial Spotted 15 | . 15 . Influence Decreases 427 | 10 201 216 Entered New Map 27 | . . 27 Time Decay 360 | 10 201 149 Lost Part 40 | . . 40 Squads Dispatched 4 | . 3 1 Investigation 4 | . 3 1 Extermination . | . . . Reinforcement . | . . . Assault . | . . . Garrison . | . . . Intercept . | . . . Searches Triggered . | . . . Construction Impeded . | . . . Haulers Reinforced . | . . . Active Scanning Responses . | . . . Cargo Convoy Interrupts . | . . . Stealth | -11 -10 -9 --------- Run | Yrd Mat Mat Distress Signals . | . . . Communications Jammed . | . . . Distress Signals . | . . . Times Spotted 18 | . 11 7 Peak Tracking Total 4 | . 4 3 Tactical Retreats . | . . . Traps | -11 -10 -9 ------- Run | Yrd Mat Mat Traps Triggered 1 | . 1 . Indirectly . | . . . Trap Hack Attempts . | . . . Triggered . | . . . Disarmed . | . . . Reprogrammed . | . . . Reused . | . . . Traps Extracted . | . . . Installed . | . . . Triggered . | . . . Machines | -11 -10 -9 ---------- Run | Yrd Mat Mat Machines Disabled . | . . . Max in Single Turn . | . . . Machines Repaired . | . . . Machines Dismantled . | . . . Machines Sabotaged . | . . . Overloaded Fab Kills . | . . . Hacking | -11 -10 -9 --------- Run | Yrd Mat Mat Machines Accessed 5 | . 3 2 Terminals 5 | . 3 2 Fabricators . | . . . Repair Stations . | . . . Recycling Units . | . . . Scanalyzers . | . . . Garrison Access . | . . . Total Hacks 17 | . 11 6 Successful 6 | . 4 2 Failed 11 | . 7 4 Catastrophic 1 | . 1 . Database Lockouts . | . . . Manual 13 | . 10 3 Terminals 17 | . 11 6 Fabricators . | . . . Repair Stations . | . . . Recycling Units . | . . . Scanalyzers . | . . . Garrison Access . | . . . Terminal Hacks 4 | . 3 1 Robot Analysis 2 | . 2 . Recall Investigation 2 | . 1 1 Fabricator Hacks . | . . . Repair Station Hacks . | . . . Recycling Unit Hacks . | . . . Scanalyzer . | . . . Garrison Access Hacks . | . . . Unauthorized Hacks 2 | . 1 1 Terminals 2 | . 1 1 Botnet 2 | . 1 1 Fabricators . | . . . Repair Stations . | . . . Recycling Units . | . . . Scanalyzers . | . . . Garrison Access . | . . . Data Cores Recovered . | . . . Used . | . . . Hacking Detections 5 | . 3 2 Full Trace Events 3 | . 2 1 Feedback Events . | . . . Feedback Blocked . | . . . Robot Schematics Acquired . | . . . Robots Built . | . . . Authchips . | . . . Time . | . . . Total Robot Build Rating . | . . . Part Schematics Acquired . | . . . Parts Built . | . . . Authchips . | . . . Time . | . . . Total Part Build Rating . | . . . Parts Repaired . | . . . Time . | . . . Parts Recycled . | . . . Recycled Matter . | . . . Retrieved Matter . | . . . Retrieved Components . | . . . Parts Scanalyzed . | . . . Part Schematics Acquired . | . . . Parts Damaged . | . . . Bothacking | -11 -10 -9 ------------ Run | Yrd Mat Mat Used RIF Installer . | . . . Robots Hacked . | . . . Non-combat . | . . . Combat . | . . . Robot Hacks Applied . | . . . Relay Couplers Released . | . . . Fabnet Peak Effective % . | . . . Robots Rewired . | . . . Allies Hacked . | . . . Hacks Repelled . | . . . Allies | -11 -10 -9 -------- Run | Yrd Mat Mat Total Allies . | . . . Largest Group . | . . . Highest-Rated Group . | . . . Highest-Rated Ally . | . . . Total Orders . | . . . Ally Attacks . | . . . Total Damage . | . . . Kills . | . . . Allies Corrupted . | . . . Allies Melted . | . . . Intel | -11 -10 -9 ------- Run | Yrd Mat Mat Active Infowar (turns) 944 | 17 643 284 Seismic 944 | 17 643 284 Robot Analysis Total 2 | . 2 . Derelict Logs Recovered . | . . . Drone Launches . | . . . Drone Recoveries . | . . . Exploration | -11 -10 -9 ------------- Run | Yrd Mat Mat Turns Passed 1113 | 89 643 381 Spaces Moved 385 | 38 245 102 Core 14 | 11 . 3 Treads 371 | 27 245 99 Legs . | . . . Wheels . | . . . Hover . | . . . Flight . | . . . Fastest Speed 50 | 50 160 160 Average Speed 161 | 170 160 161 Slowest Speed 250 | 250 160 200 Overloaded Moves . | . . . Propulsion Burnouts . | . . . Robots Hopped . | . . . Potential Cave-ins . | . . . Cave-ins Triggered . | . . . Exploration Rate (%) 18 | 4 43 9 Regions Visited 2 Branch Regions . Pre-discovered Areas . | . . . Known Exits Taken . | . . . Unknown Exits Taken 2 | 1 1 . Scrap Searched . | . . . Spaces Dug . | . . . Terrain Destroyed . | . . . Melee . | . . . Projectile . | . . . AOE . | . . . Terrain Rammed . | . . . Walls Destroyed . | . . . Machines Disabled . | . . . Actions | -11 -10 -9 --------- Run | Yrd Mat Mat Total 719 | 50 448 221 Wait 208 | . 167 41 Move 383 | 37 244 102 Hop . | . . . Pick Up 1 | 1 . . Fast Attach 18 | 7 4 7 Attach . | . . . Detach . | . . . Swap 1 | . 1 . Drop 9 | . 5 4 Fire 59 | 5 27 27 Melee . | . . . Ram 40 | . . 40 Kick . | . . . Crush . | . . . Escape Stasis . | . . . Rewire . | . . . Trap . | . . . Miscellaneous . | . . . Route ------- -11/Scrapyard -10/Materials (discovered 2 exits: *Mat / [*Min]) -9/Materials History --------- Turn | Location | Event 11 | -11/Scrapyard | Discovered new exit (range 16) 90 | -11/Scrapyard | Entered Materials 308 | -10/Materials | Build established: Mutant 567 | -10/Materials | Discovered new exit (range 5) 638 | -10/Materials | Discovered new exit (range 8) 733 | -10/Materials | Entered another Materials area 733 | -9/Materials | Evolved 2 slots: Utility x2 951 | -9/Materials | Build established: Scavenger-Mutant 1065 | -9/Materials | Core integrity fell below 50% 1095 | -9/Materials | Core integrity fell below 20% 1103 | -9/Materials | Lost 6 parts (1p1n2u2w) 1114 | -9/Materials | Destroyed by G-34 Mercenary with Small Laser Last Messages --------------- 01028_ Slammed into G-34 Mercenary. 01029_ R-06 Scavenger collects Imp. Aluminum Leg. 01031_ Slammed into G-34 Mercenary. 01033_ Destabilizing: Core damaged (-4). 01036_ Slammed into G-34 Mercenary. 01044_ Particle Gun destroyed. 01046_ Slammed into G-34 Mercenary. 01048_ Destabilizing: System corrupted (+1). 01050_ Slammed into G-34 Mercenary. 01062_ Targeting Computer broken. 01062_ Destabilizing: Short circuit. 01064_ Slammed into G-34 Mercenary. 01072_ Broken Seismic Detector destroyed. 01074_ Slammed into G-34 Mercenary. 01078_ R-06 Scavenger collects Lgt. Treads. 01080_ Slammed into G-34 Mercenary. 01084_ R-06 Scavenger collects Beam Rifle. 01086_ Slammed into G-34 Mercenary. 01089_ R-06 Scavenger collects Med. Laser. 01090_ Slammed into G-34 Mercenary. Map ----- +----------------------------------------------------+ | ??????????????????????????????????# #??????????? | | ??????????????????????????????????# ########???? | | ??????????????????????????????????# # #???? | | ???????????????????????????######## =# T #???? | | ???????????????????????????# # %# #???? | | ???????????????????????????# + %+* #???? | | ???????????????????????????# """ # #= #???? | | ???????????????????????????# """ # # #???? | | ???????????????????????????# """ # ########???? | | ???????????????????????????# # #??????????? | | ???????????????????????????######## #??????????? | | ??????????????????????????????????# #??????????? | | ???????????????????????????######## #??????????? | | ???????????????????????????# #??????????? | | ???????????????????????????# #??????????? | | ???????????????????????????# % #??????????? | | ???????????????????????????# #####+#####???????? | | ???????????????????????????# ## #???????? | | ???????????????????????????# ## """ #???????? | | ?????????????##????????????# ## """ #???????? | | ????????????##!!???????????# ## """ #???????? | | ????????????#! ??????????# ## #???????? | | ????????????# ????????## ## #???????? | | ????????????# ########t # #???????? | | ????????????# % g # "T" #???????? | | ????????????# @ # #???????? | | ??????? + % %%% ##########???????? | | ?????????????# ########/### #????????????????? | | ????????????????????# %r%%## ##????????????????? | | ????????????????????#%%%%%## #?????????????????? | | ????????????????????#%%%%%## #?????????????????? | | ????????????????????# %%% ## +?????????????????? | | ????????????????????# %[ ## #?????????????????? | | ????????????????????# [ #? #?????????????????? | | ????????????????????# [ #? #?????????????????? | | ????????????????????## ####? #?????????????????? | | ?????????????????????###???? #?????????????????? | | ???????????????????????????? #?????????????????? | | ???????????????????????????? #?????????????????? | | ???????????????????????????? ?????????????????? | | ?????????????????????????????????????????????????? | | ?????????????????????????????????????????????????? | | ?????????????????????????????????????????????????? | | ?????????????????????????????????????????????????? | | ?????????????????????????????????????????????????? | | ?????????????????????????????????????????????????? | | ?????????????????????????????????????????????????? | | ?????????????????????????????????????????????????? | | ?????????????????????????????????????????????????? | | ?????????????????????????????????????????????????? | +----------------------------------------------------+ Best States ------------- Heat Dissipation 28 Energy Generation 14 Energy Capacity 250 Matter Stores 300 Matter Capacity 300 Sight Range 16 Terrain Scan Density 10 Armor Coverage 150 Evasion (%) 40 Targeting Accuracy 5 Recoil Reduction 2 Item Schematics ----------------- None Robot Schematics ------------------ None Fabricated ------------ Nothing Repaired ---------- Nothing Alien Tech Used ----------------- None Achievements -------------- None Challenges ------------ None Game ------ Seed ThunderSmartbombPlatform Manual? 0 Play Time 00:09:51 Cumulative 82.7 hours Start 2025.08.29 @ 11:34:02 End 2025.08.29 @ 11:41:13 Sessions 1 Manual Loads 0 Difficulty Rogue Special Mode None Game No. 70 Rogue 25 Adventurer 45 Explorer 0 Win Type - Total 3 Types 2/0/0/1/0/0/0/0/0/0 Lore% 41 Gallery% 54 Achievement% 53 Wizard Run 0 Options --------- Layout 0 ASCII 1 Keyboard 0 Movement Mouse Keybinds 0 Fullscreen 1 Font 18/VGA_Max Map View 38x25 Zoom Use 54% Tactical HUD 1 Map Filters NONE Filters NONE Steam 1 RUN: 04f24fef-e1e4-4b80-a5ad-bbf291d76725